Cogmind - Beta 10.2 @@@ ROGUE MODE // 2021.10.19 @ 19:16:18 Player: DuckBoy Result: Destroyed by S-43 Plague with Heavy Machine Gun Performance ------------- Evolutions (6) 3000 Regions Visited (20) 4000 Robots Destroyed (248) 1240 Value Destroyed (7952) 7952 Prototype IDs (41) 820 Alien Tech Used (2) 400 Bonus (4785) 4785 TOTAL SCORE: 22197 Bonus ------- High Alert Combat Kills 992 Follower Combat Kills 2946 Met Zhirov 300 Met Warlord at Base 500 MAIN.C Attacked Warlord 500 Friendly Fire -453 Cogmind --------- Core Integrity 0/1150 Matter 300/300 Energy 98/100 System Corruption 12% Temperature Cool (0) Movement Core (50) Location -3/Proximity Caves Parts ------- > --- POWER (1) -------- (None) > --- PROPULSION (4) --- (None) > --- UTILITY (12) ----- Experimental Signal Interpreter Advanced Target Analyzer Improved Hacking Suite Advanced Hacking Suite > --- WEAPON (2) ------- (None) > --- INVENTORY (4) ---- Mapping Drone Bay (2/3) Phasing Sabre Peak State ------------ > --- POWER ------------ F-cell Engine > --- PROPULSION ------- Q-thruster Q-thruster Q-thruster Q-thruster > --- UTILITY ---------- Large Storage Unit Experimental Sensor Array Experimental Signal Interpreter Improved Hacking Suite Advanced Hacking Suite Advanced Hacking Suite Advanced Hacking Suite Improved System Shield Advanced System Shield Advanced System Shield Advanced System Shield Mapping Drone Bay > --- WEAPON ----------- Advanced Plasma Cannon Phasing Sabre > --- INVENTORY -------- Micro Fission Core Micro Fission Core Q-thruster Q-thruster Improved Cloaking Device Improved Medium Armor Plating Improved System Backup Module Hypervelocity Gauss Rifle Enhanced Gauss Cannon [Rating: 120] Favorites ----------- Power Light Deuterium Engine Engine Light Deuterium Engine Power Core Micro Fission Core Propulsion Combat Airjet Treads Light Treads Leg Aluminum Leg Hover Unit Combat Airjet Flight Unit Q-thruster Utility Advanced Hacking Suite Device Experimental Sensor Array Storage Large Storage Unit Processor Experimental Signal Interpreter Hackware Advanced Hacking Suite Protection Improved Light Armor Plating Weapon Phasing Sabre Energy Gun Gatling Laser Energy Cannon Advanced Plasma Cannon Ballistic Gun Improved Assault Rifle Ballistic Cannon Enhanced Gauss Cannon Launcher Missile Launcher Special Weapon Molecular Deconstructor Impact Weapon Power Maul Slashing Weapon Phasing Sabre Piercing Weapon Spear Build | -11 -10 -9 -9 -8 -7 -7 -7 -6 -6 -6 -5 -5 -5 -5 -4 -4 -4 -4 -4 -3 ------- Run | Scr Mat Mat Min Mat Fac Was Fac Fac Was Fac Fac Upp Upp War Pro Fac Upp Upp Zhi Pro Slots Evolved 12 | . . 2 . 2 2 . . 2 . . 2 . . . . 2 . . . . Power . | . . . . . . . . . . . . . . . . . . . . . Propulsion 2 | . . . . . . . . . . . 1 . . . . 1 . . . . Utility 10 | . . 2 . 2 2 . . 2 . . 1 . . . . 1 . . . . Weapon . | . . . . . . . . . . . . . . . . . . . . . Parts Attached 305 | 7 10 14 6 19 40 2 42 40 1 16 35 11 1 1 5 20 8 7 7 13 Power 30 | 1 . 1 1 2 3 1 5 3 . 1 4 3 . . 1 3 . . . 1 Engine 13 | 1 . . 1 1 1 . 2 2 . 1 1 1 . . . 2 . . . . Core 17 | . . 1 . 1 2 1 3 1 . . 3 2 . . 1 1 . . . 1 Reactor . | . . . . . . . . . . . . . . . . . . . . . Propulsion 69 | 2 2 3 1 7 5 1 11 8 . 5 10 1 . . 1 5 . 2 3 2 Treads 21 | 2 2 3 1 7 . . . 4 . . 2 . . . . . . . . . Leg 8 | . . . . . . . 6 . . . . . . . . . . . 2 . Wheel . | . . . . . . . . . . . . . . . . . . . . . Hover 32 | . . . . . 5 1 4 4 . 5 8 1 . . 1 1 . . . 2 Flight 8 | . . . . . . . 1 . . . . . . . . 4 . 2 1 . Utility 125 | 2 2 3 1 5 23 . 14 20 1 6 12 6 1 . 3 6 6 3 3 8 Device 43 | 1 . . . . 12 . 4 3 . . 6 4 . . 1 2 3 1 2 4 Storage 6 | . 2 1 . . . . . 1 . 1 . . . . . . 1 . . . Processor 5 | 1 . . . . 1 . 1 1 . . . . . . . . . . . 1 Hackware 30 | . . . . . 5 . 3 8 . 5 2 . 1 . . 3 1 1 . 1 Protection 41 | . . 2 1 5 5 . 6 7 1 . 4 2 . . 2 1 1 1 1 2 Artifact . | . . . . . . . . . . . . . . . . . . . . . Weapon 81 | 2 6 7 3 5 9 . 12 9 . 4 9 1 . 1 . 6 2 2 1 2 Energy Gun 14 | 2 . 2 . 3 . . . 1 . 1 3 . . 1 . 1 . . . . Energy Cannon 5 | . . . . . . . . . . . . . . . . 2 2 . 1 . Ballistic Gun 24 | . 4 5 1 2 4 . 1 5 . . . . . . . 1 . . . 1 Ballistic Cannon 8 | . . . . . . . 3 . . . 3 . . . . 1 . . . 1 Launcher 10 | . . . 2 . 1 . 4 1 . 1 1 . . . . . . . . . Special Weapon 3 | . 2 . . . . . . . . . . . . . . . . 1 . . Impact Weapon 1 | . . . . . 1 . . . . . . . . . . . . . . . Slashing Weapon 14 | . . . . . 1 . 4 2 . 2 2 1 . . . 1 . 1 . . Piercing Weapon 2 | . . . . . 2 . . . . . . . . . . . . . . . Special Melee Weapon . | . . . . . . . . . . . . . . . . . . . . . Unidentified Prototypes 14 | . . 2 . . 2 . 2 1 . . . . . 1 . . . 1 5 . Parts Lost 108 | . . 4 1 13 4 3 13 21 . 4 12 . . . 2 4 . 5 . 22 Power 14 | . . 1 . 2 1 1 2 2 . 1 2 . . . . . . . . 2 Propulsion 30 | . . 2 1 4 . 1 3 4 . . 4 . . . 1 2 . 2 . 6 Utility 45 | . . 1 . 4 3 . 4 10 . 2 4 . . . 1 1 . 3 . 12 Weapon 19 | . . . . 3 . 1 4 5 . 1 2 . . . . 1 . . . 2 Highest Loss Streak 13 | . . 4 1 7 3 3 5 8 . 2 6 . . . 2 3 . 4 . 13 Average Slot Usage (%) 92 | . 99 91 96 93 93 79 81 91 100 96 90 100 100 100 97 91 94 83 90 86 Engine 3 | . 14 9 . 5 . . 3 4 6 5 1 . . . . 2 5 5 5 1 Core 2 | . . . 10 . 5 5 2 . . . 2 4 5 5 5 2 . . . 2 Treads 4 | . 28 21 21 17 . . . 7 . . . . . . . . . . . . Hover 8 | . . . . . 15 15 9 4 13 12 12 17 17 17 14 2 . . . 3 Flight 2 | . . . . . . . . . . . . . . . . 17 21 20 20 13 Device 4 | . . . . . 9 15 10 2 . . 4 10 9 5 5 5 7 4 5 5 Storage 10 | . 26 32 33 27 15 11 7 5 6 6 5 5 5 5 5 5 5 5 5 1 Processor 4 | . . . . . 1 . 4 7 6 6 5 5 5 5 5 5 5 5 5 7 Hackware 32 | . . . . . 28 25 23 37 46 50 41 41 42 47 41 37 42 36 42 36 Protection 4 | . . 4 8 25 2 . 5 6 6 1 2 . . . 4 2 2 . 2 2 Energy Gun 1 | . 14 . . 4 . . . 2 6 2 3 . . 3 5 . . . . . Ballistic Gun 3 | . 13 21 18 11 6 . . 1 . . . . . . . 3 . . . 1 Slashing Weapon 3 | . . . . . . . 5 5 6 6 1 5 5 5 5 3 5 2 5 4 Naked Turns . | . . . . . . . . . . . . . . . . . . . . . Heaviest Build 64 | 9 43 62 61 64 55 41 45 41 36 36 45 47 37 35 41 47 40 37 44 44 Greatest Support 47 | 40 46 46 46 43 44 44 44 44 44 44 47 42 42 42 42 44 44 44 44 44 Greatest Overweight (x) 15 | . 1 1 2 3 2 . 3 7 . 9 4 1 . . 1 15 . . 11 3 Average Overweight (x) . | . . . 1 1 . . . . . . . . . . . . . . . . Largest Inventory Capacity 22 | 4 16 22 22 22 16 16 10 10 10 10 10 10 10 10 10 10 10 10 10 10 Average Capacity 12 | 4 15 21 22 22 16 13 10 9 10 9 10 10 10 10 10 10 10 10 10 6 Most Carried 22 | 3 10 22 22 22 16 16 10 10 10 10 10 10 10 10 10 10 10 10 10 10 Average Carried 10 | 1 5 17 21 20 14 13 7 8 9 9 7 8 9 10 9 9 9 9 9 5 Final Capacity 22 | 4 16 22 22 22 16 10 10 10 10 10 10 10 10 10 10 10 10 10 10 4 Final Carried 22 | 2 10 20 22 15 16 10 8 10 10 8 9 10 10 10 10 10 10 10 9 2 Class Distribution -------------------- 43% | Wizard-Mutant 32% | Hacker-Mutant 10% | Wizard-Sprinter 9% | Hauler-Mutant 3% | Mutant Dominant Class ---------------- Mutant | -10/Materials Hauler-Mutant | -9/Materials Hauler-Mutant | -9/Mines Hauler-Mutant | -8/Materials Hacker-Mutant | -7/Factory Hacker-Mutant | -7/Waste Hacker-Mutant | -7/Factory Wizard-Mutant | -6/Factory Wizard-Mutant | -6/Waste Wizard-Mutant | -6/Factory Wizard-Mutant | -5/Factory Wizard-Mutant | -5/Upper Caves Wizard-Mutant | -5/Upper Caves Wizard-Mutant | -5/Warlord Wizard-Mutant | -4/Proximity Caves Wizard-Sprinter | -4/Factory Wizard-Sprinter | -4/Upper Caves Wizard-Sprinter | -4/Upper Caves Wizard-Sprinter | -4/Zhirov Wizard-Mutant | -3/Proximity Caves Resources | -11 -10 -9 -9 -8 -7 -7 -7 -6 -6 -6 -5 -5 -5 -5 -4 -4 -4 -4 -4 -3 ----------- Run | Scr Mat Mat Min Mat Fac Was Fac Fac Was Fac Fac Upp Upp War Pro Fac Upp Upp Zhi Pro Matter Collected 5918 | 269 58 595 169 692 609 . 794 606 10 278 827 196 153 10 42 298 86 66 . 160 Remotely . | . . . . . . . . . . . . . . . . . . . . . Salvage Created 8941 | 153 343 1242 491 1231 926 . 1253 817 . 655 739 165 93 . 126 420 . 152 . 135 Parts 518 | 12 26 79 27 66 44 . 62 58 . 37 52 13 . . 5 25 . 6 . 6 Haulers Intercepted 4 | . 2 1 . . . . 1 . . . . . . . . . . . . . Recyclers Shooed 4 | . . . . 1 1 . . . . 1 1 . . . . . . . . . Parts Field Recycled . | . . . . . . . . . . . . . . . . . . . . . Retrieved Matter . | . . . . . . . . . . . . . . . . . . . . . Parts Self-Destructed 147 | . . . . . . . . . . . . 7 20 110 3 . . 5 . 2 Prevented 17 | . . . . . . . . . . . . . 6 11 . . . . . . Kills | -11 -10 -9 -9 -8 -7 -7 -7 -6 -6 -6 -5 -5 -5 -5 -4 -4 -4 -4 -4 -3 ------- Run | Scr Mat Mat Min Mat Fac Was Fac Fac Was Fac Fac Upp Upp War Pro Fac Upp Upp Zhi Pro Combat Hostiles Destroyed 172 | . 5 24 13 27 12 . 26 18 . 6 23 3 2 . 2 4 . 5 . 2 Melee 38 | . . . . . 8 . 9 7 . 4 2 . . . . 1 . 5 . 2 Guns 71 | . 3 24 5 22 3 . 1 5 . . 4 . . . 2 2 . . . . Cannons 17 | . . . . . . . 6 . . . 5 3 2 . . 1 . . . . AOE 46 | . 2 . 8 5 1 . 10 6 . 2 12 . . . . . . . . . Classes Destroyed 20 | 2 5 4 2 1 3 . . . . . 1 2 . . . . . . . . Worker 23 | . . 1 . . 3 . 4 7 . 3 2 . . . . 3 . . . . Builder 8 | . . 1 1 . . . 1 1 . 1 3 . . . . . . . . . Tunneler 5 | 3 . . . 1 . . 1 . . . . . . . . . . . . . Hauler 4 | . 2 1 . . . . 1 . . . . . . . . . . . . . Recycler 13 | 1 . 3 3 1 2 . 1 . . 2 . . . . . . . . . . Minesweeper 1 | . . . . . . . . . . . . 1 . . . . . . . . Mechanic 1 | . . . . . 1 . . . . . . . . . . . . . . . Operator 11 | . 1 1 . 2 1 . 2 1 . 3 . . . . . . . . . . Watcher 11 | . 3 2 . 1 2 . . 2 . . 1 . . . . . . . . . Swarmer 52 | . 3 8 4 7 . . 1 11 . . 14 . . . . . . 4 . . Saboteur 1 | . . . . . . . . . . . 1 . . . . . . . . . Grunt 60 | . 2 12 1 14 5 . 19 . . . 2 1 1 . . 3 . . . . Brawler 4 | . . . . . 1 . 1 . . . 2 . . . . . . . . . Duelist 3 | . . 1 1 1 . . . . . . . . . . . . . . . . Sentry 24 | . . 3 2 4 . . 4 5 . 3 1 . 1 . 1 . . . . . Demolisher 1 | . . . 1 . . . . . . . . . . . . . . . . . Hunter 8 | . . . . 1 1 . . 1 . 1 2 . . . 2 . . . . . Programmer 16 | . . . . . 5 . 2 1 . 2 1 1 . . . 1 . 1 . 2 Assembled 4 | . . . 4 . . . . . . . . . . . . . . . . . Thug 1 | . . . . . . . . . . . . . . . . 1 . . . . Mutant 1 | . . . . . . . . . . . . 1 . . . . . . . . Best Kill Streak 8 | 3 7 7 5 7 3 . 8 5 . 3 8 2 2 . 2 3 . 4 . 1 Combat Bots Only 8 | . 3 6 5 7 2 . 8 4 . 1 5 1 2 . 2 3 . 4 . 1 Max Kills in Single Turn 5 | 1 2 2 2 3 2 . 2 3 . 1 5 1 1 . 1 1 . 1 . 1 Gunslinging 1 | . . 1 . . . . . . . . . . . . . . . . . . Exploded 4 | . 2 . 2 3 1 . 2 2 . 1 4 . . . . . . . . . Melee 1 | . . . . . 1 . 1 1 . 1 1 . . . . 1 . 1 . 1 Uniques/NPCs Destroyed . | . . . . . . . . . . . . . . . . . . . . . Combat | -11 -10 -9 -9 -8 -7 -7 -7 -6 -6 -6 -5 -5 -5 -5 -4 -4 -4 -4 -4 -3 -------- Run | Scr Mat Mat Min Mat Fac Was Fac Fac Was Fac Fac Upp Upp War Pro Fac Upp Upp Zhi Pro Damage Taken 14367 | . 203 1155 493 1905 509 135 1653 2552 . 522 1660 110 41 20 110 297 . 626 . 2376 Core 3003 | . 13 198 61 257 138 99 227 484 . 154 237 16 . . 22 105 . 146 . 846 Absorbed by Shields 420 | . . . . . . . . . . 73 . . . . 104 243 . . . . Core Remaining (%) 58 | 100 94 . 35 53 . . 33 . . 24 . . . . 72 . . . . . Volleys Fired 528 | 6 23 73 26 116 37 . 37 33 . 20 66 10 18 . 10 39 8 2 . 4 Largest 2 | 2 2 2 2 2 2 . 2 2 . 1 2 1 1 . 1 2 1 1 . 1 Hottest 122 | 80 100 68 56 90 78 . 87 80 . 80 122 57 57 . 40 98 98 . . 57 Shots Fired 791 | 12 42 143 42 196 55 . 45 48 . 20 89 10 18 . 10 47 8 2 . 4 Gun 594 | 12 39 143 34 192 53 . 3 43 . 10 35 . . . 10 18 . . . 2 Cannon 131 | . . . . . . . 27 . . . 37 10 18 . . 29 8 . . 2 Launcher 61 | . . . 8 4 2 . 15 5 . 10 17 . . . . . . . . . Special 5 | . 3 . . . . . . . . . . . . . . . . 2 . . Kinetic 536 | . 6 138 34 151 47 . 30 39 . . 37 10 18 . . 22 . . . 4 Thermal 90 | 6 19 . . 14 6 . . 4 . 10 . . . . . 23 8 . . . Explosive 61 | . . . 8 4 2 . 15 5 . 10 17 . . . . . . . . . Electromagnetic 90 | 6 17 5 . 27 . . . . . . 35 . . . . . . . . . Entropic 12 | . . . . . . . . . . . . . . . 10 2 . . . . Robot Hit Streak 20 | 5 7 20 18 15 16 . 11 20 . 7 8 5 8 . 6 11 . . . 1 Robot Miss Streak 8 | 1 2 4 2 8 6 . 2 2 . 8 4 3 1 . 1 1 . . . 2 Penetration Max 1 | . . . . . . . . . . . 1 . . . . . . . . . Secondary Targets 7 | . . 3 . 4 . . . . . . . . . . . . . . . . Max Gunslinging Chain 1 | . . 1 . 1 . . . . . . . . . . . . . . . . Shots Hit Robots 676 | 7 24 100 26 142 63 . 66 71 . 33 66 6 14 . 7 24 . 10 . 17 Core Hits 392 | 4 13 44 28 66 30 . 60 41 . 18 54 6 3 . 4 13 . 5 . 3 Critical Hits 27 | . . 1 . . 2 . 1 1 . 3 4 2 1 . . 8 . 2 . 2 Critical Kills 9 | . . . . . . . . . . 1 1 2 . . . 4 . 1 . . Critical Parts Destroyed 17 | . . 1 . . 2 . 1 1 . 2 3 . . . . 4 . 1 . 2 Melee Attacks 304 | . . . . . 60 . 42 55 . 41 13 3 1 5 1 44 1 15 . 23 Impact 2 | . . . . . 2 . . . . . . . . . . . . . . . Slashing 254 | . . . . . 10 . 42 55 . 41 13 3 1 5 1 44 1 15 . 23 Piercing 48 | . . . . . 48 . . . . . . . . . . . . . . . Sneak Attacks 34 | . . . . . 6 . 9 7 . 6 1 . . . . 5 . . . . Combat Hostiles 1 | . . . . . . . . . . . . . . . . 1 . . . . Follow-up Attacks . | . . . . . . . . . . . . . . . . . . . . . Damage Inflicted 24898 | 105 412 1505 1034 2713 2300 . 4507 3571 . 2089 3692 210 211 . 448 964 . 406 . 731 Guns 7084 | 105 294 1505 340 2207 668 . 58 541 . 218 517 . . . 448 183 . . . . Cannons 2276 | . . . . . . . 656 . . . 1058 210 211 . . 105 . . . 36 Explosions 5747 | . 118 . 694 506 122 . 1301 728 . 361 1917 . . . . . . . . . Melee 9766 | . . . . . 1510 . 2492 2302 . 1509 176 . . . . 676 . 406 . 695 Ramming 25 | . . . . . . . . . . 1 24 . . . . . . . . . Kinetic 7008 | . 67 1395 340 1659 655 . 714 471 . . 1058 210 211 . . 192 . . . 36 Thermal 665 | 22 172 . . 170 13 . . 70 . 218 . . . . . . . . . . Explosive 5597 | . . . 694 474 122 . 1301 728 . 361 1917 . . . . . . . . . Electromagnetic 1293 | 83 173 110 . 410 . . . . . . 517 . . . . . . . . . Impact 141 | . . . . . 141 . . . . . . . . . . . . . . . Slashing 8796 | . . . . . 540 . 2492 2302 . 1509 176 . . . . 676 . 406 . 695 Piercing 829 | . . . . . 829 . . . . . . . . . . . . . . . Entropic 544 | . . . . . . . . . . . . . . . 448 96 . . . . Highest Corruption 12 | . 4 . . . 4 2 8 3 . . 6 6 4 . . . . 1 1 12 Average Corruption 3 | . 3 . . . 2 2 3 2 . . 4 4 1 . . . . 1 1 6 Corruption Purged 32 | . . . . . 6 . 10 3 . . 6 3 4 . . . . . . . Effects 129 | . 1 . . . 31 1 28 18 . . 27 11 . . . . . . 1 11 Message Errors 29 | . . . . . 10 . 8 6 . . 1 2 . . . . . . . 2 Matter Fused 27 | . . . . . 6 . 2 8 . . 9 1 . . . . . . . 1 Heat Flow Errors 19 | . 1 . . . 4 . 8 . . . 3 2 . . . . . . . 1 Energy Discharges 20 | . . . . . 3 . 3 1 . . 6 4 . . . . . . 1 2 Data Loss (minor) 16 | . . . . . 3 1 2 3 . . 4 1 . . . . . . . 2 Data Loss (major) 2 | . . . . . . . . . . . 2 . . . . . . . . . Misdirections 3 | . . . . . . . . . . . . . . . . . . . . 3 Targeting Errors 13 | . . . . . 5 . 5 . . . 2 1 . . . . . . . . Overload Shots . | . . . . . . . . . . . . . . . . . . . . . Overflow Damage 2160 | . . . 19 4 513 . 430 428 . 385 82 . . . . 202 . 52 . 45 Projectiles 17 | . . . . . . . . . . . 15 . . . . 2 . . . . Explosions 169 | . . . 19 4 . . 14 21 . 44 67 . . . . . . . . . Melee 1974 | . . . . . 513 . 416 407 . 341 . . . . . 200 . 52 . 45 Knockbacks 11 | . . . . . 1 . 2 . . . 6 . 1 . . . . . . 1 Impact 1 | . . . . . 1 . . . . . . . . . . . . . . . Kinetic 10 | . . . . . . . 2 . . . 6 . 1 . . . . . . 1 Secondary . | . . . . . . . . . . . . . . . . . . . . . Self-Inflicted Damage 306 | . 54 . . 9 . . 151 73 . 1 18 . . . . . . . . . Shots 12 | . 1 . . 1 . . 6 2 . 1 1 . . . . . . . . . Rammed 2 | . . . . . . . . . . 1 1 . . . . . . . . . Targets Rammed 2 | . . . . . . . . . . 1 1 . . . . . . . . . Kicked . | . . . . . . . . . . . . . . . . . . . . . Crushed . | . . . . . . . . . . . . . . . . . . . . . Highest Temperature 312 | 36 262 39 6 150 248 . 218 22 . 60 264 191 16 . . 312 300 . . 161 Average Temperature 53 | 18 54 8 3 35 98 . 48 16 . 21 52 60 8 . . 97 116 . . 96 Received Heat Transfer 2431 | . 48 267 48 738 72 . 519 276 . 88 276 9 . 9 4 68 . . . 9 Effects 3 | . . . . . . . . . . . . . . . . 2 1 . . . Energy Bleed 1 | . . . . . . . . . . . . . . . . . 1 . . . Interference 2 | . . . . . . . . . . . . . . . . 2 . . . . Siege Activations . | . . . . . . . . . . . . . . . . . . . . . Robots Corrupted . | . . . . . . . . . . . . . . . . . . . . . Combat Hostiles . | . . . . . . . . . . . . . . . . . . . . . Parts Fried 4 | . . 1 . . . . . 1 . . 2 . . . . . . . . . Impact Corruptions 4 | . . . . . 4 . . . . . . . . . . . . . . . Robots Melted . | . . . . . . . . . . . . . . . . . . . . . Combat Hostiles . | . . . . . . . . . . . . . . . . . . . . . Parts Melted 1 | . . . . . . . . . . 1 . . . . . . . . . . Heat Transferred 1381 | 50 225 . . 457 37 . . 150 . 462 . . . . . . . . . . Parts Sabotaged . | . . . . . . . . . . . . . . . . . . . . . Parts Stolen . | . . . . . . . . . . . . . . . . . . . . . Parts Stripped . | . . . . . . . . . . . . . . . . . . . . . Power Chain Reactions 2 | . 1 . . 1 . . . . . . . . . . . . . . . . Missiles Intercepted . | . . . . . . . . . . . . . . . . . . . . . Alert | -11 -10 -9 -9 -8 -7 -7 -7 -6 -6 -6 -5 -5 -5 -5 -4 -4 -4 -4 -4 -3 ------- Run | Scr Mat Mat Min Mat Fac Was Fac Fac Was Fac Fac Upp Upp War Pro Fac Upp Upp Zhi Pro Peak Influence 1719 | 20 251 410 367 464 271 75 842 515 170 1691 1719 . . . . 402 . . . . Initial 793 | . 13 39 97 65 176 75 31 412 170 119 793 . . . . 35 . . . . Average 419 | 7 125 187 226 323 96 65 276 280 170 1249 1233 . . . . 46 . . . . Maximum Alert Level 5 | . 1 2 1 2 1 . 3 2 . 5 5 . . . . 2 . . . . Low Security (%) 41 | 100 67 50 31 6 95 100 36 8 100 1 . . . . . 99 . . . . Level 1 29 | . 32 43 68 66 4 . 33 77 . 1 3 . . . . . . . . . Level 2 8 | . . 6 . 27 . . 28 13 . 3 . . . . . . . . . . Level 3 6 | . . . . . . . . . . 25 33 . . . . . . . . . Level 4 10 | . . . . . . . . . . 53 41 . . . . . . . . . Level 5 3 | . . . . . . . . . . 14 21 . . . . . . . . . High Security . | . . . . . . . . . . . . . . . . . . . . . Max Security . | . . . . . . . . . . . . . . . . . . . . . Squads Dispatched 90 | . 2 3 . 6 6 . 10 16 . 20 18 . . . . 9 . . . . Investigation 14 | . 1 2 . 3 . . 2 2 . 3 1 . . . . . . . . . Extermination 31 | . . . . . 5 . 3 7 . 5 5 . . . . 6 . . . . Reinforcement 16 | . 1 1 . 3 1 . 3 1 . 4 2 . . . . . . . . . Assault 7 | . . . . . . . . . . . 7 . . . . . . . . . Garrison 22 | . . . . . . . 2 6 . 8 3 . . . . 3 . . . . Intercept . | . . . . . . . . . . . . . . . . . . . . . Construction Impeded 4 | . . . . 1 . . . . . 1 2 . . . . . . . . . Haulers Reinforced . | . . . . . . . . . . . . . . . . . . . . . Stealth | -11 -10 -9 -9 -8 -7 -7 -7 -6 -6 -6 -5 -5 -5 -5 -4 -4 -4 -4 -4 -3 --------- Run | Scr Mat Mat Min Mat Fac Was Fac Fac Was Fac Fac Upp Upp War Pro Fac Upp Upp Zhi Pro Distress Signals 14 | . . 3 1 2 2 . . 1 . 1 2 . . 1 . 1 . . . . Communications Jammed . | . . . . . . . . . . . . . . . . . . . . . Distress Signals . | . . . . . . . . . . . . . . . . . . . . . Times Spotted 379 | . 11 32 12 39 31 6 39 39 . 39 53 4 16 14 2 13 . 10 . 19 Peak Tracking Total 10 | . 3 9 4 6 5 6 6 6 . 4 8 2 9 10 2 7 . 7 . 8 Tactical Retreats 31 | . 1 . 1 1 1 1 3 3 . . 6 . 4 . . 6 . 1 . 3 Traps | -11 -10 -9 -9 -8 -7 -7 -7 -6 -6 -6 -5 -5 -5 -5 -4 -4 -4 -4 -4 -3 ------- Run | Scr Mat Mat Min Mat Fac Was Fac Fac Was Fac Fac Upp Upp War Pro Fac Upp Upp Zhi Pro Traps Triggered 18 | . 2 1 . 1 4 . 1 3 . 4 1 . . . . 1 . . . . Indirectly . | . . . . . . . . . . . . . . . . . . . . . Trap Hack Attempts . | . . . . . . . . . . . . . . . . . . . . . Triggered . | . . . . . . . . . . . . . . . . . . . . . Disarmed . | . . . . . . . . . . . . . . . . . . . . . Reprogrammed 6 | . . . . . . . . 6 . . . . . . . . . . . . Reused 1 | . . . . . . . . 1 . . . . . . . . . . . . Traps Extracted . | . . . . . . . . . . . . . . . . . . . . . Installed . | . . . . . . . . . . . . . . . . . . . . . Triggered 16 | . . . . . . . . 1 . . . 1 . 14 . . . . . . Machines | -11 -10 -9 -9 -8 -7 -7 -7 -6 -6 -6 -5 -5 -5 -5 -4 -4 -4 -4 -4 -3 ---------- Run | Scr Mat Mat Min Mat Fac Was Fac Fac Was Fac Fac Upp Upp War Pro Fac Upp Upp Zhi Pro Machines Disabled 32 | . 1 2 1 2 . . 4 3 . 10 6 1 . . 1 . . 1 . . Max in Single Turn 3 | . 1 2 1 1 . . 3 . . 1 2 1 . . 1 . . 1 . . Garrison Access 2 | . . . . . . . 1 1 . . . . . . . . . . . . Machines Sabotaged . | . . . . . . . . . . . . . . . . . . . . . Garrisons Compromised . | . . . . . . . . . . . . . . . . . . . . . Overloaded Fab Kills . | . . . . . . . . . . . . . . . . . . . . . Fab Network Shutdowns 4 | . . . . . . . 1 . . 1 1 . . . . 1 . . . . Hacking | -11 -10 -9 -9 -8 -7 -7 -7 -6 -6 -6 -5 -5 -5 -5 -4 -4 -4 -4 -4 -3 --------- Run | Scr Mat Mat Min Mat Fac Was Fac Fac Was Fac Fac Upp Upp War Pro Fac Upp Upp Zhi Pro Machines Accessed 105 | . 2 4 . 1 14 . 10 16 . 14 12 1 3 5 1 11 1 1 9 . Terminals 47 | . 1 2 . . 7 . 4 8 . 8 7 . . . 1 9 . . . . Fabricators 13 | . . . . . 2 . 3 3 . 2 2 . . . . 1 . . . . Repair Stations 5 | . . . . . 2 . . 1 . . 1 . . . . 1 . . . . Recycling Units 9 | . 1 2 . . 1 . 1 3 . 1 . . . . . . . . . . Scanalyzers 5 | . . . . 1 2 . 1 . . 1 . . . . . . . . . . Garrison Access 6 | . . . . . . . 1 1 . 2 2 . . . . . . . . . Total Hacks 479 | . 2 5 . 8 42 . 37 82 . 65 68 8 9 16 2 85 1 1 48 . Successful 364 | . 2 4 . 7 24 . 28 57 . 44 56 8 9 16 2 57 1 1 48 . Failed 114 | . . 1 . 1 18 . 9 24 . 21 12 . . . . 28 . . . . Catastrophic 18 | . . . . . 4 . 2 2 . 3 . . . . . 7 . . . . Database Lockouts 1 | . . . . . . . . 1 . . . . . . . . . . . . Manual 230 | . 2 5 . . 22 . 16 57 . 43 38 . . 1 . 45 . 1 . . Terminals 241 | . 1 3 . . 23 . 11 39 . 37 51 . . . 2 74 . . . . Fabricators 75 | . . . . . 7 . 18 18 . 14 9 . . . . 9 . . . . Repair Stations 18 | . . . . . 5 . . 9 . . 2 . . . . 2 . . . . Recycling Units 15 | . 1 2 . . 2 . 2 6 . 2 . . . . . . . . . . Scanalyzers 18 | . . . . 8 5 . 3 . . 2 . . . . . . . . . . Garrison Access 29 | . . . . . . . 3 10 . 10 6 . . . . . . . . . Terminal Hacks 205 | . . 1 . . 5 . 5 14 . 17 35 8 9 16 2 43 1 1 48 . Record 68 | . . . . . . . . . . 1 1 8 7 10 2 3 . . 36 . Part Schematic 33 | . . . . . . . . 5 . 3 12 . . . . 9 . . 4 . Robot Schematic 11 | . . . . . 3 . . 2 . 2 2 . . . . 2 . . . . Robot Analysis 8 | . . . . . . . 1 . . 1 . . . . . 2 . . 4 . Prototype ID Bank 12 | . . . . . . . . . . . 1 . . 5 . 2 . . 4 . Open Door 6 | . . . . . . . . . . 1 . . 2 1 . . 1 1 . . Level Access Points 2 | . . . . . . . . . . . . . . . . 2 . . . . Branch Access Points 3 | . . . . . . . . . . . 1 . . . . 2 . . . . Terminal Index 7 | . . . . . 2 . 1 1 . 1 1 . . . . 1 . . . . Fabricator Index 4 | . . . . . . . 1 1 . . 1 . . . . 1 . . . . Recycling Unit Index 1 | . . . . . . . 1 . . . . . . . . . . . . . Garrison Index 3 | . . . . . . . . . . 1 1 . . . . 1 . . . . Alert Level 3 | . . . . . . . . 1 . 1 1 . . . . . . . . . Unreport Threat 23 | . . 1 . . . . . 2 . 6 10 . . . . 4 . . . . Locate Traps 1 | . . . . . . . . . . . . . . . . 1 . . . . Reprogram Traps 1 | . . . . . . . . 1 . . . . . . . . . . . . Security Status 1 | . . . . . . . . . . . . . . . . 1 . . . . Patrol Status 1 | . . . . . . . . . . . . . . . . 1 . . . . Investigation Status 1 | . . . . . . . . . . . . . . . . 1 . . . . Recall Investigation 1 | . . . . . . . . 1 . . . . . . . . . . . . Recall Extermination 7 | . . . . . . . 1 . . . 1 . . . . 5 . . . . Recall Reinforcements 1 | . . . . . . . . . . . . . . . . 1 . . . . Recall Assault 3 | . . . . . . . . . . . 3 . . . . . . . . . Registered Prototypes 1 | . . . . . . . . . . . . . . . . 1 . . . . Zone Layout 3 | . . . . . . . . . . . . . . . . 3 . . . . Fabricator Hacks 55 | . . . . . 5 . 10 15 . 10 8 . . . . 7 . . . . Load Schematic 21 | . . . . . 2 . 4 5 . 3 4 . . . . 3 . . . . Build 34 | . . . . . 3 . 6 10 . 7 4 . . . . 4 . . . . Repair Station Hacks 15 | . . . . . 3 . . 8 . . 2 . . . . 2 . . . . Scan Component 8 | . . . . . 2 . . 4 . . 1 . . . . 1 . . . . Repair 7 | . . . . . 1 . . 4 . . 1 . . . . 1 . . . . Recycling Unit Hacks . | . . . . . . . . . . . . . . . . . . . . . Scanalyzer 15 | . . . . 7 3 . 3 . . 2 . . . . . . . . . . Insert Component 7 | . . . . 3 2 . 1 . . 1 . . . . . . . . . . Analyze 8 | . . . . 4 1 . 2 . . 1 . . . . . . . . . . Garrison Access Hacks 2 | . . . . . . . 1 1 . . . . . . . . . . . . Seal Access 2 | . . . . . . . 1 1 . . . . . . . . . . . . Unauthorized Hacks 71 | . 2 3 . . 8 . 8 19 . 15 11 . . . . 5 . . . . Terminals 23 | . 1 1 . . 4 . 2 6 . 2 4 . . . . 3 . . . . Track 2 | . . . . . . . . 1 . . 1 . . . . . . . . . Assimilate 6 | . . . . . 1 . . 3 . . 1 . . . . 1 . . . . Botnet 12 | . . . . . 2 . 2 2 . 2 2 . . . . 2 . . . . Operators 3 | . 1 1 . . 1 . . . . . . . . . . . . . . . Fabricators 11 | . . . . . 2 . 2 2 . 2 1 . . . . 2 . . . . Report 5 | . . . . . 1 . 1 1 . 1 . . . . . 1 . . . . Siphon 6 | . . . . . 1 . 1 1 . 1 1 . . . . 1 . . . . Repair Stations . | . . . . . . . . . . . . . . . . . . . . . Recycling Units 14 | . 1 2 . . 2 . 2 5 . 2 . . . . . . . . . . Reject 5 | . . . . . 1 . 1 2 . 1 . . . . . . . . . . Mask 6 | . . . . . 1 . 1 3 . 1 . . . . . . . . . . Tunnel 3 | . 1 2 . . . . . . . . . . . . . . . . . . Scanalyzers . | . . . . . . . . . . . . . . . . . . . . . Garrison Access 23 | . . . . . . . 2 6 . 9 6 . . . . . . . . . Reprogram 23 | . . . . . . . 2 6 . 9 6 . . . . . . . . . Data Cores Recovered . | . . . . . . . . . . . . . . . . . . . . . Used . | . . . . . . . . . . . . . . . . . . . . . Hacking Detections 65 | . 1 1 . 1 10 . 10 11 . 11 11 . . . . 9 . . . . Full Trace Events 9 | . . . . 1 . . 2 2 . 3 1 . . . . . . . . . Feedback Events . | . . . . . . . . . . . . . . . . . . . . . Feedback Blocked . | . . . . . . . . . . . . . . . . . . . . . Robot Schematics Acquired 10 | . . . . . 3 . . 2 . 2 1 . . . . 2 . . . . Robots Built 11 | . . . . . . . 5 3 . 3 . . . . . . . . . . Matter 1492 | . . . . . . . 627 189 . 676 . . . . . . . . . . Time 633 | . . . . . . . 299 134 . 200 . . . . . . . . . . Total Robot Build Rating 42 | . . . . . . . 18 12 . 12 . . . . . . . . . . Part Schematics Acquired 39 | . . . . 3 1 . 1 5 . 4 12 . . . . 9 . . 4 . Parts Built 25 | . . . . . 5 . 2 6 . 1 5 . . . . 6 . . . . Matter 3371 | . . . . . 489 . 190 932 . 159 829 . . . . 772 . . . . Time 1788 | . . . . . 263 . 95 466 . 53 386 . . . . 525 . . . . Total Part Build Rating 150 | . . . . . 23 . 10 34 . 6 33 . . . . 44 . . . . Parts Repaired 7 | . . . . . 1 . . 4 . . 1 . . . . 1 . . . . Time 177 | . . . . . 38 . . 64 . . 50 . . . . 25 . . . . Parts Recycled . | . . . . . . . . . . . . . . . . . . . . . Recycled Matter . | . . . . . . . . . . . . . . . . . . . . . Retrieved Matter . | . . . . . . . . . . . . . . . . . . . . . Retrieved Components . | . . . . . . . . . . . . . . . . . . . . . Parts Scanalyzed 6 | . . . . 3 1 . 1 . . 1 . . . . . . . . . . Part Schematics Acquired 6 | . . . . 3 1 . 1 . . 1 . . . . . . . . . . Parts Damaged 2 | . . . . . . . 1 . . 1 . . . . . . . . . . Bothacking | -11 -10 -9 -9 -8 -7 -7 -7 -6 -6 -6 -5 -5 -5 -5 -4 -4 -4 -4 -4 -3 ------------ Run | Scr Mat Mat Min Mat Fac Was Fac Fac Was Fac Fac Upp Upp War Pro Fac Upp Upp Zhi Pro Used RIF Installer . | . . . . . . . . . . . . . . . . . . . . . Robots Hacked . | . . . . . . . . . . . . . . . . . . . . . Non-combat . | . . . . . . . . . . . . . . . . . . . . . Combat . | . . . . . . . . . . . . . . . . . . . . . Robot Hacks Applied . | . . . . . . . . . . . . . . . . . . . . . Relay Couplers Released 4 | . . . . . . . . . . 4 . . . . . . . . . . Programmers 4 | . . . . . . . . . . 4 . . . . . . . . . . Robots Rewired 10 | . . . . . . . . . . . . 4 2 4 . . . . . . Allies Hacked 1 | . . . . . . . . . . . 1 . . . . . . . . . Hacks Repelled . | . . . . . . . . . . . . . . . . . . . . . Allies | -11 -10 -9 -9 -8 -7 -7 -7 -6 -6 -6 -5 -5 -5 -5 -4 -4 -4 -4 -4 -3 -------- Run | Scr Mat Mat Min Mat Fac Was Fac Fac Was Fac Fac Upp Upp War Pro Fac Upp Upp Zhi Pro Total Allies 85 | . . . . . 1 . 8 12 20 18 12 4 2 4 . 4 . . . . Largest Group 24 | . . . . . 1 . 3 6 24 24 6 4 3 6 5 6 1 . . . Highest-Rated Group 851 | . . . . . 26 . 84 194 851 851 221 124 93 288 258 318 26 . . . Highest-Rated Ally 60 | . . . . . 26 . 32 38 50 60 54 31 31 60 60 60 26 . . . Total Orders 25 | . . . . . 2 . . 8 . . . . . . 3 3 2 5 . 2 STAY 8 | . . . . . 1 . . 7 . . . . . . . . . . . . ROAM 1 | . . . . . . . . . . . . . . . . 1 . . . . FOLLOW 2 | . . . . . 1 . . 1 . . . . . . . . . . . . EXPLORE 7 | . . . . . . . . . . . . . . . . 2 . 3 . 2 RETURN 7 | . . . . . . . . . . . . . . . 3 . 2 2 . . Ally Attacks 590 | . . . . . . . 32 48 . 287 111 17 59 13 9 14 . . . . Total Damage 14626 | . . . . . . . 459 1513 . 7855 3069 319 852 249 155 155 . . . . Kills 102 | . . . . . . . 3 12 . 58 17 1 8 3 . . . . . . Allies Corrupted 2 | . . . . . . . . . . . 2 . . . . . . . . . Allies Melted . | . . . . . . . . . . . . . . . . . . . . . Intel | -11 -10 -9 -9 -8 -7 -7 -7 -6 -6 -6 -5 -5 -5 -5 -4 -4 -4 -4 -4 -3 ------- Run | Scr Mat Mat Min Mat Fac Was Fac Fac Was Fac Fac Upp Upp War Pro Fac Upp Upp Zhi Pro Robot Analysis Total 8 | . . . . . . . 1 . . 1 . . . . . 2 . . 4 . Derelict Logs Recovered 8 | . . . 1 . . . . . . . . 2 1 . 1 . 2 1 . . Drone Launches 13 | . . . . . . . . . . . . . . . 3 2 3 3 . 2 Drone Recoveries 12 | . . . . . . . . . . . . . . . 3 2 3 2 . 2 Exploration | -11 -10 -9 -9 -8 -7 -7 -7 -6 -6 -6 -5 -5 -5 -5 -4 -4 -4 -4 -4 -3 ------------- Run | Scr Mat Mat Min Mat Fac Was Fac Fac Was Fac Fac Upp Upp War Pro Fac Upp Upp Zhi Pro Turns Passed 21992 | 121 548 939 400 931 3100 94 2227 3933 321 2061 2007 545 530 637 289 2059 447 331 91 381 Spaces Moved 17559 | 64 267 373 177 289 2207 127 1227 1998 310 2191 1908 644 745 1133 282 1652 683 387 205 690 Core 81 | 16 . . . . . . . 1 . 1 . . . . . 1 . . 1 61 Treads 2196 | 48 267 373 177 289 . . . 985 . . 57 . . . . . . . . . Legs 351 | . . . . . . . 351 . . . . . . . . . . . . . Wheels . | . . . . . . . . . . . . . . . . . . . . . Hover 11530 | . . . . . 2207 127 876 1012 310 2190 1851 644 745 1133 282 141 . . . 12 Flight 3401 | . . . . . . . . . . . . . . . . 1510 683 387 204 617 Fastest Speed 31 | 50 160 160 180 180 76 61 61 76 76 66 45 45 45 45 45 31 31 31 31 31 Average Speed 79 | 132 163 179 180 180 114 69 96 119 76 69 73 46 45 45 66 33 31 31 33 36 Slowest Speed 800 | 160 180 180 200 220 220 76 240 400 76 500 300 108 45 45 111 800 31 34 600 200 Overloaded Moves . | . . . . . . . . . . . . . . . . . . . . . Propulsion Burnouts . | . . . . . . . . . . . . . . . . . . . . . Robots Hopped 4 | . . . . . . . . . . . . . . . . 3 . . . 1 Cave-ins Triggered . | . . . . . . . . . . . . . . . . . . . . . Teleports 1 | . . . . . . . . . . . . . . . . . . . 1 . Exploration Rate (%) 54 | 4 54 37 47 31 32 91 28 30 97 45 29 66 88 93 49 36 62 81 62 84 Regions Visited 20 Branch Regions 9 Pre-discovered Areas 12 | . 1 2 . . . . . . . . . 3 1 . 1 . . 1 3 . Known Exits Taken 11 | . . . . 1 . . . . . 1 1 1 1 1 1 1 1 1 1 . Unknown Exits Taken 5 | 1 1 1 1 . . . 1 . . . . . . . . . . . . . Scrap Searched 16 | . . . . . . . . . . . . 4 3 . 2 . 2 2 . 3 Spaces Dug 188 | . 2 . 8 . 21 . 13 42 . 19 9 2 2 5 . 57 8 . . . Terrain Destroyed 728 | . 6 . 88 46 39 . 114 75 . 89 173 6 16 5 1 60 9 . . 1 Melee 104 | . . . . . 21 . 4 13 . 12 9 2 1 5 . 36 1 . . . Projectile 68 | . 3 . . . . . 1 . . . 11 4 15 . 1 24 8 . . 1 AOE 556 | . 3 . 88 46 18 . 109 62 . 77 153 . . . . . . . . . Terrain Rammed . | . . . . . . . . . . . . . . . . . . . . . Walls Destroyed . | . . . . . . . . . . . . . . . . . . . . . Machines Disabled . | . . . . . . . . . . . . . . . . . . . . . Actions | -11 -10 -9 -9 -8 -7 -7 -7 -6 -6 -6 -5 -5 -5 -5 -4 -4 -4 -4 -4 -3 --------- Run | Scr Mat Mat Min Mat Fac Was Fac Fac Was Fac Fac Upp Upp War Pro Fac Upp Upp Zhi Pro Total 24292 | 85 328 497 215 503 2630 132 2140 3403 396 2644 2387 872 920 1252 371 3039 908 570 224 776 Wait 5331 | 6 18 20 . 67 250 1 768 1245 83 352 338 180 150 100 73 1273 203 157 5 42 Move 17534 | 63 266 372 176 288 2207 126 1226 1998 309 2190 1908 643 744 1132 281 1645 682 386 204 688 Hop 4 | . . . . . . . . . . . . . . . . 3 . . . 1 Pick Up 119 | 3 7 15 4 7 14 2 5 22 1 13 13 1 2 1 1 5 . 1 1 1 Fast Attach 118 | 6 2 5 3 4 6 1 22 23 . 6 10 2 . . . 7 4 2 7 8 Attach 96 | 1 . 3 . 10 15 1 18 12 . 7 11 1 . . 2 6 2 4 1 2 Detach 36 | . 1 . . . 8 . 12 . . 2 3 . . . . 4 2 2 . 2 Swap 93 | . 8 6 3 5 19 . 2 5 1 3 14 8 1 1 3 7 2 1 1 3 Drop 90 | . 3 3 3 6 14 1 8 7 2 8 11 4 2 1 . 6 4 . 5 2 Fire 528 | 6 23 73 26 116 37 . 37 33 . 20 66 10 18 . 10 39 8 2 . 4 Melee 304 | . . . . . 60 . 42 55 . 41 13 3 1 5 1 44 1 15 . 23 Ram 1 | . . . . . . . . . . 1 . . . . . . . . . . Kick . | . . . . . . . . . . . . . . . . . . . . . Crush . | . . . . . . . . . . . . . . . . . . . . . Escape Stasis . | . . . . . . . . . . . . . . . . . . . . . Rewire 38 | . . . . . . . . 3 . 1 . 20 2 12 . . . . . . Trap . | . . . . . . . . . . . . . . . . . . . . . Miscellaneous . | . . . . . . . . . . . . . . . . . . . . . Route ------- -11/Scrapyard -10/Materials (discovered 2 exits: *Mat / [*Min]) -9/Materials (discovered 3 exits: *Mat / [*Min x2]) -9/Mines -8/Materials (discovered 2 exits: *Fac x2) -7/Factory -7/Waste -7/Factory (discovered 3 exits: *Fac / [*Low x2]) -6/Factory (discovered 6 exits: *Fac x3 / *Low x2 / *Ext) -6/Waste -6/Factory (discovered 5 exits: *Fac x2 / *Low / *Ext x2) -5/Factory (discovered 3 exits: *Fac / *Upp x2) -5/Upper Caves -5/Upper Caves (discovered 2 exits: *Fac / *War) -5/Warlord -4/Proximity Caves -4/Factory (discovered 6 exits: *Res x4 / *Upp x2) -4/Upper Caves -4/Upper Caves (discovered 2 exits: *Res / *Zhi) -4/Zhirov -3/Proximity Caves History --------- Turn | Location | Event 8 | -11/Scrapyard | Discovered new exit (range 15) 122 | -11/Scrapyard | Entered Materials 201 | -10/Materials | Discovered new exit (range 10) 308 | -10/Materials | Build established: Mutant 617 | -10/Materials | Discovered new exit (range 16) 670 | -10/Materials | Entered another Materials area 670 | -9/Materials | Evolved 2 slots: Utility x2 955 | -9/Materials | Discovered new exit (range 5) 979 | -9/Materials | Build established: Hauler-Mutant 1419 | -9/Materials | Discovered new exit (range 15) 1543 | -9/Materials | Lost 4 parts (1p2n1u) 1591 | -9/Materials | Discovered new exit (range 11) 1609 | -9/Materials | Entered Mines 1620 | -9/Mines | Learned 4 Materials zone layouts 1674 | -9/Mines | Core integrity fell below 50% 1702 | -9/Mines | Assembled infested the area 1961 | -9/Mines | Discovered new exit (range 12) 2009 | -9/Mines | Entered Materials 2009 | -8/Materials | Evolved 2 slots: Utility x2 2010 | -8/Materials | Identified exit to Factory 2103 | -8/Materials | Destroyed 7 combat bots 2254 | -8/Materials | Lost 3 parts (1p1n1w) 2824 | -8/Materials | Discovered exit to Factory (range 16) 2844 | -8/Materials | Lost 7 parts (1p2n3u1w) 2940 | -8/Materials | Entered Factory 2940 | -7/Factory | Evolved 2 slots: Utility x2 3233 | -7/Factory | Build established: Hacker-Mutant 4027 | -7/Factory | Fabricated Cmb. Airjet? 4198 | -7/Factory | Discovered new exit (range 16) 4461 | -7/Factory | Fabricated Hacking Suite? 4526 | -7/Factory | Fabricated Cmb. Airjet? 5034 | -7/Factory | Repaired Lgt. Nuclear Core 5309 | -7/Factory | Lost 3 parts (1p2u) 6040 | -7/Factory | Sucked down chute 6040 | -7/Factory | Entered Waste 6063 | -7/Waste | Spotted C-40 Crusher 6063 | -7/Waste | Spotted C-40 Crusher 6066 | -7/Waste | Spotted C-40 Crusher 6067 | -7/Waste | Spotted C-40 Crusher 6088 | -7/Waste | Spotted C-40 Crusher 6098 | -7/Waste | Crushed by Compactor (1 part destroyed, 2 dropped) 6099 | -7/Waste | Spotted C-40 Crusher 6101 | -7/Waste | Crushed by Compactor (1 part destroyed, 1 dropped) 6112 | -7/Waste | Crushed by Compactor (1 part destroyed, 1 dropped) 6122 | -7/Waste | Discovered new exit (range 15) 6134 | -7/Waste | Entered Factory 6143 | -7/Factory | Lost 3 parts (1p1n1w) 6203 | -7/Factory | Discovered new exit (range 15) 6576 | -7/Factory | Fabricated B-48 Gladiator (x3) 6607 | -7/Factory | Discovered new exit (range 16) 6689 | -7/Factory | Discovered new exit (range 11) 6750 | -7/Factory | Destroyed 7 combat bots 6756 | -7/Factory | Lost 4 parts (1p1n1u1w) 6784 | -7/Factory | Core integrity fell below 50% 7141 | -7/Factory | Destroyed 8 combat bots 7149 | -7/Factory | Lost 5 parts (1p1n2u1w) 7342 | -7/Factory | Garrison activated, responded to threat 7815 | -7/Factory | Fabricated Cmb. Airjet (x2) 7938 | -7/Factory | Fabricated O-24 Administrator (x1) 8260 | -7/Factory | Fabricated O-24 Administrator (x1) 8352 | -7/Factory | Local fabrication network quarantined 8361 | -7/Factory | Entered another Factory area 8361 | -6/Factory | Accompanied by 3 allies 8361 | -6/Factory | Evolved 2 slots: Utility x2 8421 | -6/Factory | Discovered new exit (range 5) 8430 | -6/Factory | Found Prototype Processor 8430 | -6/Factory | Identified Exp. Signal Interpreter 8449 | -6/Factory | Discovered new exit (range 13) 8471 | -6/Factory | Identified exit to Factory 8865 | -6/Factory | Discovered exit to Factory (range 6) 8902 | -6/Factory | Fabricated Adv. System Shield (x1) 8945 | -6/Factory | Lost 4 parts (3u1w) 9210 | -6/Factory | Discovered new exit (range 14) 9266 | -6/Factory | Build established: Wizard-Mutant 9339 | -6/Factory | Fabricated L-41 Fighter (x3) 9498 | -6/Factory | Discovered exit to Factory (range 5) 9537 | -6/Factory | Garrison activated, responded to threat 9574 | -6/Factory | Lost 8 parts (1p3n3u1w) 9822 | -6/Factory | Build established: Hacker-Mutant 9885 | -6/Factory | Core integrity fell below 50% 9918 | -6/Factory | Lost 3 parts (1n1u1w) 9952 | -6/Factory | Fabricated Adv. Hacking Suite (x1) 10039 | -6/Factory | Central database locked down 10472 | -6/Factory | Fabricated Adv. Hacking Suite? 10812 | -6/Factory | Build established: Wizard-Mutant 11021 | -6/Factory | Fabricated Adv. Hacking Suite? 11518 | -6/Factory | Repaired Power Sword 11532 | -6/Factory | Repaired Lrg. Storage Unit 11567 | -6/Factory | Repaired Lgt. Treads 11582 | -6/Factory | Repaired Lgt. Treads 12040 | -6/Factory | Fabricated Cmb. Airjet (x2) 12100 | -6/Factory | Discovered new exit (range 15) 12294 | -6/Factory | Sucked down chute 12294 | -6/Factory | Entered Waste 12295 | -6/Waste | Joined by Warlord forces that had cleared the area 12355 | -6/Waste | 4 allies followed down the chute 12568 | -6/Waste | Discovered new exit (range 14) 12586 | -6/Waste | Identified exit to Factory 12615 | -6/Waste | Entered Factory 12615 | -6/Factory | Accompanied by 24 allies 12681 | -6/Factory | Spotted B-75 Beast 12803 | -6/Factory | Discovered exit to Factory (range 8) 13014 | -6/Factory | Discovered new exit (range 9) 13026 | -6/Factory | Identified exit to Extension 13252 | -6/Factory | Fabricated Adv. Hacking Suite (x1) 13367 | -6/Factory | Fabricated I-47 Archangel (x1) 13477 | -6/Factory | Garrison activated, responded to threat 13691 | -6/Factory | Fabricated O-24 Administrator (x1) 13829 | -6/Factory | Discovered exit to Factory (range 16) 13923 | -6/Factory | Discovered new exit (range 16) 13961 | -6/Factory | Garrison activated, responded to threat 14082 | -6/Factory | Discovered exit to Extension (range 16) 14256 | -6/Factory | Fabricated O-24 Administrator? 14415 | -6/Factory | P-60 Hacker assimilated allied Administrator 5c 14423 | -6/Factory | Local fabrication network quarantined 14502 | -6/Factory | Identified exit to Lower Caves 14507 | -6/Factory | Garrison activated, responded to threat 14676 | -6/Factory | Entered another Factory area 14676 | -5/Factory | Accompanied by 6 allies 14676 | -5/Factory | Evolved 2 slots: Propulsion x1, Utility x1 14841 | -5/Factory | Repaired Imp. Gravmag System 14876 | -5/Factory | Discovered new exit (range 5) 15043 | -5/Factory | Discovered new exit (range 9) 15276 | -5/Factory | First assault squad dispatched 15448 | -5/Factory | Garrison activated, responded to threat 15469 | -5/Factory | Fabricated Exp. Sensor Array? 15595 | -5/Factory | Lost 6 parts (1p3n2u) 16184 | -5/Factory | Fabricated Q-thruster (x2) 16379 | -5/Factory | Identified exit to Upper Caves 16420 | -5/Factory | Fabricated Adv. System Shield (x1) 16504 | -5/Factory | Fabricated Adv. System Shield (x1) 16581 | -5/Factory | Local fabrication network quarantined 16683 | -5/Factory | Entered Upper Caves 16854 | -5/Upper Caves | Attacked by a delusional Derelict stockpiling Unaware 16916 | -5/Upper Caves | Learned Factory garrison access intel 17067 | -5/Upper Caves | Learned location of Armory (-3) 17174 | -5/Upper Caves | Learned 8 Factory zone layouts 17174 | -5/Upper Caves | Learned Factory emergency access door positions 17174 | -5/Upper Caves | Learned Armory stockpile data 17174 | -5/Upper Caves | Learned Armory security intel 17208 | -5/Upper Caves | Discovered new exit (range 10) 17212 | -5/Upper Caves | Identified exit to Upper Caves 17228 | -5/Upper Caves | Entered another Upper Caves area 17228 | -5/Upper Caves | Accompanied by 3 allies 17234 | -5/Upper Caves | Attracted the attention of an 0b10 checkpoint 17238 | -5/Upper Caves | Discovered new exit (range 5) 17240 | -5/Upper Caves | Identified exit to Factory 17320 | -5/Upper Caves | Learned 12 Factory zone layouts 17463 | -5/Upper Caves | Learned Research stockpile data 17463 | -5/Upper Caves | Learned Research garrison access intel 17579 | -5/Upper Caves | Encountered a Warlord checkpoint 17705 | -5/Upper Caves | Discovered new exit (range 14) 17709 | -5/Upper Caves | Identified exit to Warlord 17758 | -5/Upper Caves | Entered Warlord 17758 | -5/Warlord | Accompanied by 2 allies 17771 | -5/Warlord | Discovered new exit (range 9) 17799 | -5/Warlord | Received a Watcher feed algorithm from an ecstatic Tinkerer 17911 | -5/Warlord | Visited the Vortex Lab 17920 | -5/Warlord | Found Prototype Energy Gun 17921 | -5/Warlord | Identified Vortex Rifle 17932 | -5/Warlord | Warlord's base attacked by MAIN.C 17948 | -5/Warlord | Met Warlord 18191 | -5/Warlord | Warlord forces counterattacked 18366 | -5/Warlord | Identified exit to Proximity Caves 18395 | -5/Warlord | Entered Proximity Caves 18395 | -4/Proximity Caves | Accompanied by 5 allies 18658 | -4/Proximity Caves | Learned location of Testing (-2) 18684 | -4/Proximity Caves | Entered Factory 18684 | -4/Factory | Accompanied by 3 allies 18684 | -4/Factory | Evolved 2 slots: Propulsion x1, Utility x1 18685 | -4/Factory | Identified exit to Upper Caves 18685 | -4/Factory | Identified exit to Research 18687 | -4/Factory | Loaded intel: 3 garrison access locations 18870 | -4/Factory | Allied Derelicts emerged from ambush trap array 18957 | -4/Factory | Lost 3 parts (2n1w) 19079 | -4/Factory | Fabricated Q-thruster (x2) 19222 | -4/Factory | Fabricated Q-thruster (x2) 19377 | -4/Factory | Fabricated F-cell Engine (x1) 19380 | -4/Factory | Build established: Wizard-Sprinter 19503 | -4/Factory | Fabricated Imp. Cloaking Device? 19682 | -4/Factory | Repaired Imp. System Backup Module 19689 | -4/Factory | Local fabrication network quarantined 20442 | -4/Factory | Garrison activated, responded to threat 20538 | -4/Factory | Spotted B-86 Titan 20743 | -4/Factory | Entered Upper Caves 20743 | -4/Upper Caves | Accompanied by 1 ally 20765 | -4/Upper Caves | Encountered a Warlord checkpoint 20800 | -4/Upper Caves | Learned location of 1 exit from Research 20809 | -4/Upper Caves | Identified exit to Upper Caves 21190 | -4/Upper Caves | Entered another Upper Caves area 21241 | -4/Upper Caves | Lost 4 parts (1n3u) 21242 | -4/Upper Caves | Discovered exit to Research (range 25) 21271 | -4/Upper Caves | Acquired the password to a Derelict Tinkerer's latest research 21273 | -4/Upper Caves | Found Prototype Special Weapon 21273 | -4/Upper Caves | Identified Molecular Deconstructor 21444 | -4/Upper Caves | Caught by Unaware searching for contraband prototypes 21472 | -4/Upper Caves | Learned location of Quarantine (-3) 21509 | -4/Upper Caves | Discovered new exit (range 24) 21519 | -4/Upper Caves | Identified exit to Zhirov 21521 | -4/Upper Caves | Entered Zhirov 21521 | -4/Zhirov | Discovered new exit (range 3) 21522 | -4/Zhirov | Identified exit to Proximity Caves 21527 | -4/Zhirov | Met Zhirov 21540 | -4/Zhirov | Zhirov requested help retrieving the SGEMP Prototype 21547 | -4/Zhirov | Found Alien Artifact 21547 | -4/Zhirov | Identified Integrated Reactor 21547 | -4/Zhirov | Installed Integrated Reactor, increased core energy generation (+10) 21553 | -4/Zhirov | Found Alien Artifact 21553 | -4/Zhirov | Identified Transdimensional Reconstructor 21553 | -4/Zhirov | Warped through subspace 21612 | -4/Zhirov | Entered Proximity Caves 21819 | -3/Proximity Caves | Lost 8 parts (1p2n4u1w) 21910 | -3/Proximity Caves | System corruption reached 10% 21963 | -3/Proximity Caves | Core integrity fell below 50% 21976 | -3/Proximity Caves | Spotted B-86 Titan 21977 | -3/Proximity Caves | Core integrity fell below 20% 21993 | -3/Proximity Caves | Destroyed by S-43 Plague with Heavy Machine Gun Last Messages --------------- 21959_ Mic. Fission Core destroyed. 21961_ S-43 Plague suffers critical hit. 21961_ Destroyed Lgt. Antimatter Reactor. 21961_ S-43 Plague knocked back. 21961_ Enh. Gauss Cannon destroyed. 21962_ Adv. Hacking Suite destroyed. 21962_ Adv. System Shield destroyed. 21963_ Imp. Hacking Suite destroyed. 21965_ Imp. System Backup Module destroyed. 21976_ System corrupted: Heat flow error (+195). 21976_ Knocked back. 21976_ Penetrated by Slug. 21980_ Knocked back. 21981_ Adv. Hacking Suite destroyed. 21986_ Searching scrap... 21986_ Found Imp. Dynamic Insulation System. 21986_ Found Mak. Leg. 21986_ Found Adv. Signal Interpreter. 21986_ Found Imp. System Backup Module. 21986_ Found 17 Matter. Map ----- +----------------------------------------------------+ | ???????????????????????????????????????????? | | ???????????????????????????????????????????? | | ???????????????????????????????????????????? | | ???????????????????????????????????????????? | | ???????????????????????????????????????????? | | ???????????????????????????????????????????? | | ????????? ???? ????????????????????????? | | ????????? ??? ????????????????????????? | | ????????? ??? ????????????????????????? | | ????????? ???? ????????????????????????? | | ????????? ???? ????????????????????????? | | ????????? ??## ????????????????????????? | | ????????? ??# ????????????????????????? | | ????????? ?? ????????????????????????? | | ?????????# #??? ????????????????????????? | | ?????????# #??? ????????????????????????? | | ?#######?# #??? #????????????????????????? | | ## #?# #???# #????????????????????????? | | # ### #???# #????????????????????????? | | ## #???# #????????????????????????? | | ##### ###?????##???????????????? | | ## #???## ##??????????????? | | =!!#??## #??????????????? | | # #"" ##%!#### #??????????????? | | # "# ## ## #??????????????? | | ### ### #?# @ ####???????????? | | ?## #?# #?# #???????????? | | ##?# #?# #?# """ #???????????? | | ## #??# ### #?# """"" #???????????? | | ?## #??# ## ###s """"" #???????????? | | ??##### ##??# ### " " #???????????? | | ??????# ???# #?# """ """#???????????? | | ??????# ??# #?## # """ """????????????? | | ?????? ???# #??##### """ """????????????? | | ??????## ??? ??????# ????????????? | | ????????#???# ??????# ????????????? | | ?????????????# #??????#########????????????? | | ??????????????#????????????????????????????? | | ???????????????????????????????????????????? | | ???????????????????????????????????????????? | | ???????????????????????????????????????????? | | ???????????????????????????????????????????? | | ???????????????????????????????????????????? | | ???????????????????????????????????????????? | | ???????????????????????????????????????????? | | ???????????????????????????????????????????? | | ???????????????????????????????????????????? | | ???????????????????????????????????????????? | | ???????????????????????????????????????????? | | ???????????????????????????????????????????? | +----------------------------------------------------+ Best States ------------- Heat Dissipation 43 Energy Generation 29 Energy Capacity 800 Matter Stores 300 Matter Capacity 300 Sight Range 16 Robot Scan Range 30 Terrain Scan Range 16 Terrain Scan Density 60 Armor Coverage 525 Core Shielding 20 Propulsion Shielding 90 Utility Shielding 33 Evasion (%) 63 Targeting Accuracy 8 Melee Accuracy 6 Target Analysis 8 Recoil Reduction 2 Offensive Hacking 80 Defensive Hacking 54 Item Schematics ----------------- Cmb. Airjet | -8/Materials | Scanalyzed Hacking Suite | -8/Materials | Scanalyzed System Shield | -8/Materials | Scanalyzed System Backup Module | -7/Factory | Scanalyzed System Restoration Module | -7/Factory | Scanalyzed Nanoactuators | -6/Factory | Hacked Imp. System Shield | -6/Factory | Hacked Adv. Hacking Suite | -6/Factory | Hacked Adv. System Shield | -6/Factory | Hacked Imp. Cloaking Device | -6/Factory | Hacked Gravmag Array | -6/Factory | Hacked Nuclear Pulse Thruster | -6/Factory | Hacked Cmb. Gravmag System | -6/Factory | Hacked Phasing Sabre | -6/Factory | Scanalyzed Imp. Kinecellerator | -5/Factory | Hacked Nuclear Pulse Array | -5/Factory | Hacked Q-thruster | -5/Factory | Hacked F-cell Engine | -5/Factory | Hacked Exp. Sensor Array | -5/Factory | Hacked Imp. Gyrokinetic Inverter | -5/Factory | Hacked Force Lance | -5/Factory | Hacked Gamma Bomb Array | -5/Factory | Hacked Linear Accelerator | -5/Factory | Hacked Antimatter Reactor | -5/Factory | Hacked Antimissile System | -5/Factory | Hacked Field Propulsion Array | -5/Factory | Hacked Micro-nuke Launcher | -4/Factory | Hacked Adv. Heavy Siege Treads | -4/Factory | Hacked Adv. Transmission Jammer | -4/Factory | Hacked Biometal Heavy Treads | -4/Factory | Hacked Adv. Powered Armor | -4/Factory | Hacked Railgun | -4/Factory | Hacked Quantum Reactor | -4/Factory | Hacked Imp. Overload Regulator | -4/Factory | Hacked Imp. Remote Shield | -4/Factory | Hacked Assault Drone Bay | -4/Zhirov | Free Exp. Heat Sink | -4/Zhirov | Free Exp. Optical Array | -4/Zhirov | Free Imp. Arc Thrower | -4/Zhirov | Free Robot Schematics ------------------ L-41 Fighter | -7/Factory | Hacked O-24 Administrator | -7/Factory | Hacked S-27 Virus | -7/Factory | Hacked P-70 Sage | -6/Factory | Hacked L-31 Rogue | -6/Factory | Hacked I-47 Archangel | -6/Factory | Hacked B-48 Gladiator | -6/Factory | Hacked P-60 Hacker | -5/Factory | Hacked H-77 Assassin | -4/Factory | Hacked A-02 Transporter | -4/Factory | Hacked Fabricated ------------ Cmb. Airjet | x2 | -7/Factory Hacking Suite | x1 | -7/Factory Cmb. Airjet | x2 | -7/Factory B-48 Gladiator | x3 | -7/Factory | Preloaded Cmb. Airjet | x2 | -7/Factory O-24 Administrator | x1 | -7/Factory O-24 Administrator | x1 | -7/Factory Adv. System Shield | x1 | -6/Factory L-41 Fighter | x3 | -6/Factory Adv. Hacking Suite | x1 | -6/Factory Adv. Hacking Suite | x1 | -6/Factory Adv. Hacking Suite | x1 | -6/Factory Cmb. Airjet | x2 | -6/Factory Adv. Hacking Suite | x1 | -6/Factory I-47 Archangel | x1 | -6/Factory O-24 Administrator | x1 | -6/Factory O-24 Administrator | x1 | -6/Factory Exp. Sensor Array | x1 | -5/Factory Q-thruster | x2 | -5/Factory Adv. System Shield | x1 | -5/Factory Adv. System Shield | x1 | -5/Factory Q-thruster | x2 | -4/Factory Q-thruster | x2 | -4/Factory F-cell Engine | x1 | -4/Factory Imp. Cloaking Device | x1 | -4/Factory Alien Tech Used ----------------- Integrated Reactor Transdimensional Reconstructor Achievements -------------- A Powerful Ally? Charge!!! Production Line We Are Legion Challenges ------------ None Game ------ Seed FieldFluxRegenerator Manual? 0 Play Time 05:07:13 Cumulative 108.2 hours Start 2021.10.18 @ 19:19:45 End 2021.10.19 @ 19:16:18 Sessions 3 Manual Loads 0 Difficulty Rogue Special Mode None Game No. 77 Rogue 74 Adventurer 3 Explorer 0 Win Type - Total 1 Types 1/0/0/0/0/0/0/0/0 Lore% 53 Gallery% 52 Achievement% 45 Wizard Run 0 Options --------- ASCII 0 Keyboard 0 Movement Numpad Keybinds 0 Fullscreen 1 Font 18/SmallcapsGlow Map View 76x50 Tactical HUD 1 Map Filters NONE Filters NONE Steam 1 RUN: be8e6a3a-a96c-4adb-b1af-209810d70720